bitfinex/quotes_BTCUSD_20240811
["timestamp","ask_amount","ask_price","bid_price","bid_amount"]
[1723373629244,0.11289156,61222.0,61221.0,0.16211448]
[1723373629704,0.11300416,61222.0,61221.0,0.16211448]
[1723373632633,0.11297151,61222.0,61221.0,0.16211473]
[1723373636239,0.11297533,61222.0,61221.0,0.16211473]
[1723373637261,0.66390225,61222.0,61221.0,0.16211473]
[1723373637464,0.93156633,61222.0,61221.0,0.02645592]
[1723373637639,0.93156633,61222.0,61221.0,0.01918628]
[1723373637840,0.88257725,61222.0,61221.0,0.01918628]
[1723373638241,0.89257725,61222.0,61221.0,0.01918628]
[1723373638440,0.88257725,61222.0,61221.0,0.01918628]
[1723373638854,0.65390225,61222.0,61221.0,0.01918628]
[1723373639071,0.7028942,61222.0,61221.0,0.01918628]
[1723373639713,0.68248842,61222.0,61221.0,0.01918628]
[1723373639851,0.70292601,61222.0,61221.0,0.01918628]
[1723373640265,0.70292603,61222.0,61221.0,0.01918628]
[1723373641941,0.88260908,61222.0,61221.0,0.01918628]
[1723373642336,0.91115993,61222.0,61221.0,0.01918628]
[1723373642540,0.93159918,61222.0,61221.0,0.01918628]
[1723373643320,0.70292418,61222.0,61221.0,0.01918628]
[1723373643719,0.66882228,61222.0,61221.0,0.01918628]
[1723373643923,0.44014728,61222.0,61221.0,0.01918628]
[1723373644344,0.44014728,61222.0,61221.0,0.02645411]
[1723373645911,0.41970803,61222.0,61221.0,0.02645411]
[1723373646200,0.44014838,61222.0,61221.0,0.01918628]
[1723373648434,0.44014596,61222.0,61221.0,0.01918628]
[1723373648633,0.35974596,61222.0,61221.0,0.01918628]
[1723373649030,0.33930561,61222.0,61221.0,0.01918628]
[1723373649229,0.35974967,61222.0,61221.0,0.01918628]
[1723373650184,0.35974828,61222.0,61221.0,0.01918628]
[1723373650384,0.35974828,61222.0,61221.0,0.02645411]
[1723373652455,0.31076414,61222.0,61221.0,0.02645411]
[1723373653511,0.29032147,61222.0,61221.0,0.02645411]
[1723373653662,0.31074681,61222.0,61221.0,0.02645411]
[1723373654045,0.39144681,61222.0,61221.0,0.02645411]
[1723373655280,0.62012181,61222.0,61221.0,0.02645411]
[1723373655602,0.62012181,61222.0,61221.0,0.01918628]
[1723373657040,0.59969647,61222.0,61221.0,0.01918628]
[1723373657241,0.62022257,61222.0,61221.0,0.01918628]
[1723373660582,0.59969647,61222.0,61221.0,0.01918628]
[1723373660794,0.62028316,61222.0,61221.0,0.01918628]
[1723373661083,0.59969647,61222.0,61221.0,0.01918628]
[1723373661290,0.62035809,61222.0,61221.0,0.01918628]
[1723373661843,0.90798269,61222.0,61221.0,0.01918628]
[1723373662084,0.94903309,61222.0,61221.0,0.01918628]
[1723373662283,0.95903309,61222.0,61221.0,0.01918628]
[1723373662508,1.14519232,61222.0,61221.0,0.01918628]
[1723373662842,1.324647,61222.0,61221.0,0.01318628]
[1723373663173,1.37487013,61222.0,61221.0,0.01318628]
[1723373663582,1.315647,61222.0,61221.0,0.01318628]
[1723373663777,1.315647,61222.0,61221.0,0.00818628]
[1723373664186,1.27664103,61222.0,61221.0,0.00818628]
[1723373664921,1.28764103,61222.0,61221.0,0.00818628]
[1723373666375,1.27764103,61222.0,61221.0,0.00818628]
[1723373667064,1.28764103,61222.0,61221.0,0.00818628]
[1723373667263,1.27764103,61222.0,61221.0,0.00818628]
[1723373667471,1.28764103,61222.0,61221.0,0.00818628]
[1723373667844,1.27764103,61222.0,61221.0,0.00818628]
[1723373668042,1.28764103,61222.0,61221.0,0.00818628]
[1723373669520,1.38547816,61222.0,61221.0,0.00818628]
[1723373669821,1.28764103,61222.0,61221.0,0.00818628]
[1723373671645,1.2877267,61222.0,61221.0,0.00818628]
[1723373672252,1.87775565,61222.0,61221.0,0.00818628]
[1723373672459,1.28775565,61222.0,61221.0,0.00818628]
[1723373673034,2.2663464,61222.0,61221.0,0.00818628]
[1723373673219,2.23353065,61222.0,61221.0,0.00818628]
[1723373673421,2.23353266,61222.0,61221.0,0.00818628]
[1723373673873,2.72282812,61222.0,61221.0,0.00818628]
[1723373674085,2.72282812,61222.0,61214.0,0.0009152]
[1723373674086,1.06099655,61215.0,61214.0,0.0009152]
[1723373674284,2.44840477,61215.0,61214.0,0.0009152]
[1723373674500,2.30176878,61215.0,61214.0,0.0009152]
[1723373674735,2.19566912,61215.0,61214.0,0.0009152]
[1723373675612,2.19666912,61215.0,61214.0,0.0019152]
[1723373677386,2.19666912,61215.0,61214.0,0.0029152]
[1723373677387,2.19066912,61215.0,61214.0,0.0029152]
[1723373677596,2.20066912,61215.0,61214.0,0.0029152]
[1723373678202,2.34706272,61215.0,61214.0,0.0029152]
[1723373678404,2.35700911,61215.0,61214.0,0.0029152]
[1723373678612,2.49429364,61215.0,61214.0,0.0029152]
[1723373678817,2.37558245,61215.0,61214.0,0.0029152]
[1723373679016,2.49371485,61215.0,61214.0,0.0029152]
[1723373679217,2.34732125,61215.0,61214.0,0.0029152]
[1723373679806,2.49371485,61215.0,61214.0,0.0029152]
[1723373681295,2.34732125,61215.0,61214.0,0.0029152]
[1723373681861,2.72234482,61215.0,61214.0,0.0029152]
[1723373682716,2.72228289,61215.0,61214.0,0.0029152]
[1723373683050,2.66319686,61215.0,61214.0,0.0029152]
[1723373683388,2.72260587,61215.0,61214.0,0.0029152]
[1723373684008,2.57634623,61215.0,61214.0,0.0029152]
[1723373684821,2.34764423,61215.0,61214.0,0.0029152]
[1723373686214,2.34780893,61215.0,61214.0,0.0029152]
[1723373687604,1.13747755,61210.0,61209.0,0.0009152]
[1723373687829,2.15291255,61210.0,61209.0,0.0009152]
[1723373688112,2.18701255,61210.0,61209.0,0.0009152]
[1723373688314,2.26006811,61210.0,61209.0,0.0008752]
[1723373688520,2.25416811,61210.0,61209.0,0.0008752]
[1723373688725,2.18111255,61210.0,61209.0,0.0008752]
[1723373688864,2.27853047,61210.0,61209.0,0.0008752]
[1723373689264,2.18511255,61210.0,61209.0,0.0018752]
[1723373689579,2.18511255,61210.0,61209.0,0.0028752]
[1723373689811,2.06949247,61210.0,61209.0,0.0028752]
[1723373689960,2.18813916,61210.0,61209.0,0.0028752]
[1723373690878,2.28555708,61210.0,61209.0,0.0028752]
[1723373691298,2.18813916,61210.0,61209.0,0.0028752]
[1723373691680,2.31042597,61210.0,61209.0,0.0028752]
[1723373691853,2.32042597,61210.0,61209.0,0.0028752]
[1723373693241,2.38370237,61210.0,61209.0,0.0028752]
[1723373693455,2.38357203,61210.0,61209.0,0.0028752]
[1723373693888,2.32450621,61210.0,61209.0,0.0028752]
[1723373694088,2.3835258,61210.0,61209.0,0.0028752]
[1723373694628,2.17483899,61210.0,61209.0,0.0672752]
[1723373694942,2.15045583,61210.0,61209.0,0.0672752]
[1723373695141,2.09104101,61210.0,61209.0,0.0672752]
[1723373695359,2.15040891,61210.0,61209.0,0.0672752]
[1723373697280,2.15010784,61210.0,61209.0,0.0672752]
[1723373697948,2.15010784,61210.0,61209.0,0.0028752]
[1723373698467,2.15347889,61210.0,61209.0,0.0028752]
[1723373699727,2.15347889,61210.0,61209.0,0.0672752]
[1723373699728,2.15012096,61210.0,61209.0,0.0672752]
[1723373700171,2.07707889,61210.0,61209.0,0.0672752]
[1723373700373,2.07297889,61210.0,61209.0,0.0672752]
[1723373700709,2.07733041,61210.0,61209.0,0.0672752]
[1723373701020,2.07733041,61210.0,61209.0,0.0028752]
[1723373701225,2.15373041,61210.0,61209.0,0.0028752]
[1723373701861,1.92501041,61210.0,61209.0,0.0028752]
[1723373702063,1.84475753,61210.0,61209.0,0.0028752]
[1723373703331,1.88695155,61210.0,61209.0,0.0028352]
[1723373703556,2.04208775,61210.0,61209.0,0.0028352]
[1723373703762,1.88666178,61210.0,61209.0,0.0028352]
[1723373703961,2.04200071,61210.0,61209.0,0.0028352]
[1723373705276,1.94460771,61210.0,61209.0,0.0028352]
[1723373706271,2.06634896,61210.0,61209.0,0.0028352]
[1723373706856,2.06666243,61210.0,61209.0,0.0028352]
[1723373708129,2.06288111,61210.0,61209.0,0.0028352]
[1723373708325,1.9410683,61210.0,61209.0,0.0028352]
[1723373708606,1.94492118,61210.0,61209.0,0.0028352]
[1723373709234,1.9410683,61210.0,61209.0,0.0028352]
[1723373709425,1.9413406,61210.0,61209.0,0.0028352]
[1723373710629,1.94104216,61210.0,61209.0,0.0028352]
[1723373710858,1.94104216,61210.0,61209.0,0.0691352]
[1723373711484,1.94489504,61210.0,61209.0,0.0028352]
[1723373711621,2.02349504,61210.0,61209.0,0.0028352]
[1723373712024,2.25221504,61210.0,61209.0,0.0028352]
[1723373712248,2.02349504,61210.0,61209.0,0.0028352]
[1723373712625,2.41636474,61210.0,61209.0,0.0028352]
[1723373712880,2.45046474,61210.0,61209.0,0.0028352]
[1723373713229,2.59679181,61210.0,61209.0,0.0028352]
[1723373714023,2.44164433,61210.0,61209.0,0.0028352]
[1723373714235,2.45149396,61210.0,61209.0,0.0028352]
[1723373714638,2.23559505,61210.0,61209.0,0.0028352]
[1723373714840,2.45155917,61210.0,61209.0,0.0028352]
[1723373716137,2.45154948,61210.0,61209.0,0.0028352]
[1723373716340,1.13359743,61206.0,61205.0,0.0009141]
[1723373716541,1.13359743,61206.0,61198.0,0.0663]
[1723373716542,0.44743143,61199.0,61198.0,0.0663]
[1723373716716,0.69174359,61199.0,61198.0,0.07433521]
[1723373716878,0.83080015,61199.0,61198.0,0.0663]
[1723373717082,0.85380015,61199.0,61198.0,0.0663]
[1723373717278,1.22886927,61199.0,61198.0,0.0663]
[1723373717549,1.22886927,61199.0,61198.0,0.1442]
[1723373717866,1.10931547,61199.0,61198.0,0.1442]
[1723373718080,1.23259483,61199.0,61198.0,0.0663]
[1723373718261,2.01212396,61199.0,61198.0,0.0663]
[1723373720047,2.01712396,61199.0,61198.0,0.0663]
[1723373720364,1.87059483,61199.0,61198.0,0.0663]
[1723373720741,0.82255355,61195.0,61194.0,0.0779]
[1723373720964,1.22879495,61195.0,61194.0,0.0779]
[1723373721305,1.10936847,61195.0,61194.0,0.1442]
[1723373721663,1.2291275,61195.0,61194.0,0.1442]
[1723373721866,1.2191275,61195.0,61194.0,0.1442]
[1723373722163,1.21728995,61195.0,61194.0,0.1462]
[1723373722629,1.54035638,61195.0,61194.0,0.002]
[1723373722759,2.11035638,61195.0,61194.0,0.002]
[1723373723827,0.82647243,61190.0,61188.0,0.0663]
[1723373724040,0.82647243,61190.0,61185.0,0.0672141]
[1723373724041,1.31164638,61190.0,61185.0,0.0672141]
[1723373724221,2.33869108,61190.0,61185.0,0.0009141]
[1723373724420,0.82652543,61186.0,61185.0,0.0009141]
[1723373724560,1.31139938,61186.0,61185.0,0.0009141]
[1723373724962,1.42045035,61186.0,61185.0,0.0009141]
[1723373725138,1.54045982,61186.0,61185.0,0.0009141]
[1723373726177,1.70460952,61186.0,61185.0,0.0009141]
[1723373726382,1.85096017,61186.0,61185.0,0.0009141]
[1723373726587,2.29475188,61186.0,61185.0,0.0009141]
[1723373726805,2.35467773,61186.0,61185.0,0.0009141]
[1723373726935,2.36967773,61186.0,61185.0,0.0019141]
[1723373727167,0.13825988,61185.0,61184.0,0.0009141]
[1723373727370,2.14617838,61185.0,61184.0,0.0009141]
[1723373728166,1.98202868,61185.0,61184.0,0.0009141]
[1723373728392,2.06032868,61185.0,61184.0,0.0009141]
[1723373728598,2.060391,61185.0,61184.0,0.0009141]
[1723373729645,2.20659577,61185.0,61184.0,0.0009141]
[1723373729772,2.25269577,61185.0,61184.0,0.0019141]
[1723373729993,2.2806407,61185.0,61184.0,0.0029141]
[1723373730195,2.42683526,61185.0,61184.0,0.0029141]
[1723373731514,2.2806407,61185.0,61184.0,0.0029141]
[1723373731975,2.42682379,61185.0,61184.0,0.0029141]
[1723373732223,0.820926,61179.0,61178.0,0.0603]
[1723373732439,0.12626255,61175.0,61174.0,0.079]
[1723373732653,0.41084221,61175.0,61174.0,0.079]
[1723373732879,0.44384221,61175.0,61174.0,0.08761227]
[1723373733101,1.13039521,61175.0,61174.0,0.14791227]
[1723373733351,1.13424809,61175.0,61174.0,0.06891227]
[1723373733817,1.67424809,61175.0,61174.0,0.00861227]
[1723373734043,1.90409909,61175.0,61174.0,0.00861227]
[1723373734276,1.99409909,61175.0,61174.0,0.00861227]
[1723373734520,2.0428199,61175.0,61174.0,0.00861227]
[1723373735005,2.05257519,61175.0,61174.0,0.00861227]
[1723373735226,2.21672489,61175.0,61174.0,0.00861227]
[1723373735494,2.22553934,61175.0,61174.0,0.00861227]
[1723373735755,2.41928012,61175.0,61174.0,0.00952747]
[1723373736009,1.73038576,61175.0,61174.0,0.06982747]
[1723373736229,1.76129965,61175.0,61174.0,0.14882747]
[1723373736462,1.76029965,61175.0,61174.0,0.14882747]
[1723373736681,1.77029965,61175.0,61174.0,0.14882747]
[1723373736903,1.78215253,61175.0,61174.0,0.14882747]
[1723373737142,1.77415253,61175.0,61174.0,0.14882747]
[1723373737372,1.78215253,61175.0,61174.0,0.14882747]
[1723373737708,1.77829965,61175.0,61174.0,0.14882747]
[1723373737791,1.78329965,61175.0,61174.0,0.14882747]
[1723373737995,1.76329965,61175.0,61174.0,0.14882747]
[1723373739265,1.11027098,61175.0,61174.0,0.14882747]
[1723373741040,1.12027098,61175.0,61174.0,0.14882747]
[1723373741376,1.15327098,61175.0,61174.0,0.14882747]
[1723373742143,1.15712386,61175.0,61174.0,0.14882747]
[1723373742734,1.15724077,61175.0,61174.0,0.14882747]
[1723373743366,1.73724077,61175.0,61174.0,0.14882747]
[1723373743717,1.72338789,61175.0,61174.0,0.14882747]
[1723373744348,1.81824077,61175.0,61174.0,0.00952747]
[1723373744577,2.21124147,61175.0,61174.0,0.00952747]
[1723373744786,0.02569043,61171.0,61170.0,1.0649]
[1723373744999,1.19865294,61171.0,61170.0,1.0]
[1723373745235,2.0857346,61171.0,61170.0,1.0]
[1723373745570,2.08188172,61171.0,61170.0,1.0]
[1723373746406,2.07175487,61171.0,61170.0,1.0649]
[1723373746633,2.07175487,61171.0,61170.0,1.1402]
[1723373746815,1.95339593,61171.0,61170.0,1.1402]
[1723373747011,1.84582695,61171.0,61170.0,1.1402]
[1723373747165,1.84282695,61171.0,61170.0,1.1402]
[1723373747385,1.88082695,61171.0,61170.0,1.1402]
[1723373747947,1.86682695,61171.0,61170.0,1.1402]
[1723373748172,1.75952993,61171.0,61170.0,1.1402]
[1723373748331,1.88082543,61171.0,61170.0,1.1402]
[1723373748737,1.87082543,61171.0,61170.0,1.1402]
[1723373748926,1.87082543,61171.0,61170.0,1.1411152]
[1723373749130,1.88082543,61171.0,61170.0,1.1411152]
[1723373749312,1.88082543,61171.0,61170.0,1.0658152]
[1723373749950,1.88079333,61171.0,61170.0,1.0658152]
[1723373750359,1.88464621,61171.0,61170.0,1.0658152]
[1723373752469,1.88464621,61171.0,61170.0,1.07311056]
[1723373752645,2.27766191,61171.0,61170.0,1.00821056]
[1723373752841,2.11351221,61171.0,61170.0,1.00821056]
[1723373753471,2.13331463,61171.0,61170.0,1.00821056]
[1723373753674,2.19385326,61171.0,61170.0,1.00821056]
[1723373756330,2.24247015,61171.0,61170.0,1.00821056]
[1723373757199,2.24262675,61171.0,61170.0,1.00821056]
[1723373757399,2.40677645,61171.0,61170.0,1.00821056]
[1723373757603,2.40695933,61171.0,61170.0,1.00821056]
[1723373758433,2.58720844,61171.0,61170.0,0.92482174]
[1723373758636,2.71854223,61171.0,61170.0,0.89696713]
[1723373758838,2.62130844,61171.0,61170.0,0.89696713]
[1723373759048,2.84019115,61171.0,61170.0,0.89696713]
[1723373759249,2.73101313,61171.0,61170.0,0.86796713]
[1723373759453,2.62130844,61171.0,61170.0,0.86796713]
[1723373759644,2.60947089,61171.0,61170.0,0.86796713]
[1723373760030,2.62130844,61171.0,61170.0,0.86796713]
[1723373760385,2.62130844,61171.0,61170.0,0.83296713]
[1723373761411,2.62130844,61171.0,61170.0,0.77289813]
[1723373762910,2.62130844,61171.0,61170.0,0.73689813]
[1723373763113,2.62208269,61171.0,61170.0,0.55997059]
[1723373763315,2.7435282,61171.0,61170.0,0.55997059]
[1723373764076,2.74354629,61171.0,61170.0,0.52197059]
[1723373764281,2.62181002,61171.0,61170.0,0.50697059]
[1723373764467,2.74355575,61171.0,61170.0,0.49967523]
[1723373764680,2.74355194,61171.0,61170.0,0.43828523]
[1723373764881,2.62181002,61171.0,61170.0,0.41581523]
[1723373765317,2.74355194,61171.0,61170.0,0.41581523]
[1723373765508,2.74355194,61171.0,61170.0,0.36912723]
[1723373765509,2.62181002,61171.0,61170.0,0.36912723]
[1723373765656,2.74355194,61171.0,61170.0,0.36912723]
[1723373766070,2.62181002,61171.0,61170.0,0.36912723]
[1723373766612,2.56155945,61171.0,61170.0,0.31691723]
[1723373766751,2.62198105,61171.0,61170.0,0.31691723]
[1723373767157,2.62195687,61171.0,61170.0,0.31691723]
[1723373767570,2.62195687,61171.0,61170.0,0.28075023]
[1723373767974,2.62195687,61171.0,61170.0,0.18183353]
[1723373768179,0.02569043,61153.0,61145.0,0.49107874]
[1723373768379,0.02569043,61153.0,61150.0,0.0652]
[1723373768380,0.36524855,61151.0,61150.0,0.0652]
[1723373768599,1.47196127,61151.0,61150.0,0.1473]
[1723373768822,1.80090227,61151.0,61150.0,0.1473]
[1723373768996,1.69098648,61151.0,61150.0,0.1473]
[1723373769210,1.12098648,61151.0,61150.0,0.1473]
[1723373769414,1.16971753,61151.0,61150.0,0.1473]
[1723373769564,1.12098648,61151.0,61150.0,0.1473]
[1723373770182,1.16971753,61151.0,61150.0,0.1473]
[1723373770384,1.09994547,61151.0,61150.0,0.1473]
[1723373770753,1.14389532,61151.0,61150.0,0.1473]
[1723373771064,1.13089532,61151.0,61150.0,0.1473]
[1723373771274,1.41241265,61151.0,61150.0,0.0642]
[1723373771481,1.20838287,61151.0,61150.0,0.0642]
[1723373771701,1.29548493,61151.0,61150.0,0.0642]
[1723373771905,1.28148493,61151.0,61150.0,0.0642]
[1723373772150,1.35871479,61151.0,61150.0,0.0642]
[1723373772375,1.50607127,61151.0,61150.0,0.0642]
[1723373772575,1.49207127,61151.0,61150.0,0.0642]
[1723373772805,1.49307127,61151.0,61150.0,0.0642]
[1723373773133,2.24917333,61151.0,61150.0,0.0642]
[1723373773321,2.25784423,61151.0,61150.0,0.0642]
[1723373773721,2.24484423,61151.0,61150.0,0.0642]
[1723373774138,2.22389715,61151.0,61150.0,0.0642]
[1723373774339,2.02288647,61151.0,61150.0,0.0642]
[1723373774541,1.87567557,61151.0,61150.0,0.0642]
[1723373774966,1.92435974,61151.0,61150.0,0.0642]
[1723373775293,2.16630074,61151.0,61150.0,0.0642]
[1723373775536,1.93735974,61151.0,61150.0,0.0642]
[1723373775756,1.93735291,61151.0,61150.0,0.0642]
[1723373776045,1.88867557,61151.0,61150.0,0.0651152]
[1723373776281,1.89252845,61151.0,61150.0,0.0651152]
[1723373776452,1.93735291,61151.0,61150.0,0.0651152]
[1723373776876,1.88867557,61151.0,61150.0,0.0651152]
[1723373777633,2.11761657,61151.0,61150.0,0.0651152]
[1723373777841,1.88867557,61151.0,61150.0,0.0651152]
[1723373778039,1.92801481,61151.0,61150.0,0.0651152]
[1723373778357,1.92801481,61151.0,61150.0,0.0650752]
[1723373778759,1.91801481,61151.0,61150.0,0.0650752]
[1723373779090,1.96671176,61151.0,61150.0,0.1481752]
[1723373779290,1.91801481,61151.0,61150.0,0.1481752]
[1723373779589,1.92801481,61151.0,61150.0,0.1481752]
[1723373780143,1.97671291,61151.0,61150.0,0.1481752]
[1723373780750,1.98056579,61151.0,61150.0,0.1481752]
[1723373780954,1.93186769,61151.0,61150.0,0.1481752]
[1723373781336,1.93186769,61151.0,61150.0,0.0650752]
[1723373781579,1.83185203,61151.0,61150.0,0.0650752]
[1723373781755,1.93237418,61151.0,61150.0,0.0650752]
[1723373782182,1.91852072,61151.0,61150.0,0.1481752]
[1723373782759,1.92852072,61151.0,61150.0,0.1481752]
[1723373785305,1.9287114,61151.0,61150.0,0.1481752]
[1723373785507,1.9187114,61151.0,61150.0,0.1481752]
[1723373785710,1.6567704,61151.0,61150.0,0.1481752]
[1723373785906,0.55711695,61151.0,61150.0,0.1481752]
[1723373786349,0.78605795,61151.0,61150.0,0.1481752]
[1723373787149,1.11499895,61151.0,61150.0,0.1481752]
[1723373787348,1.21502021,61151.0,61150.0,0.1481752]
[1723373787551,1.15436201,61151.0,61150.0,0.1481752]
[1723373787954,1.11499895,61151.0,61150.0,0.1481752]
[1723373788502,0.88605795,61151.0,61150.0,0.1481752]
[1723373788703,0.88596755,61151.0,61150.0,0.1481752]
[1723373790205,0.88679955,61151.0,61150.0,0.1481752]
[1723373791638,0.85979955,61151.0,61150.0,0.1481752]
[1723373792046,0.88379955,61151.0,61150.0,0.1481752]
[1723373792221,0.87079955,61151.0,61150.0,0.1481752]
[1723373792430,0.85988927,61151.0,61150.0,0.1481752]
[1723373792654,0.87188927,61151.0,61150.0,0.1481752]
[1723373792848,0.87188184,61151.0,61150.0,0.1481752]
[1723373793904,0.88188184,61151.0,61150.0,0.1481752]
[1723373794233,0.88185697,61151.0,61150.0,0.1481752]
[1723373798908,0.65107842,61151.0,61150.0,0.1481752]
[1723373799088,0.65291597,61151.0,61150.0,0.1481752]
[1723373799728,0.65241438,61151.0,61150.0,0.1481752]
[1723373799910,0.88135538,61151.0,61150.0,0.1481752]
[1723373800467,0.65241438,61151.0,61150.0,0.1481752]
[1723373800695,0.32347338,61151.0,61150.0,0.1481752]
[1723373800915,0.55241438,61151.0,61150.0,0.1481752]
[1723373801907,0.32347338,61151.0,61150.0,0.1481752]
[1723373802115,0.04518846,61151.0,61150.0,0.15432232]
[1723373802525,0.04518846,61151.0,61150.0,0.16184268]
[1723373803397,0.04518846,61151.0,61150.0,0.27631468]
[1723373803606,0.04518846,61151.0,61150.0,0.16184268]
[1723373803824,0.02466955,61151.0,61150.0,0.16184268]
[1723373804025,0.04499958,61151.0,61150.0,0.16184268]
[1723373804223,0.15946958,61151.0,61150.0,0.15569556]
[1723373804608,0.04499958,61151.0,61150.0,0.16184268]
[1723373805321,0.03299958,61151.0,61150.0,0.16184268]
[1723373805528,0.02299958,61151.0,61150.0,0.16184268]
[1723373805763,0.03399958,61151.0,61150.0,0.16184268]
[1723373805982,0.03399958,61151.0,61150.0,0.15569556]
[1723373806259,0.37741058,61151.0,61150.0,0.15569556]
[1723373806463,0.5412255,61151.0,61150.0,0.15569556]
[1723373807031,0.55032722,61151.0,61150.0,0.15569556]
[1723373808165,0.55032722,61151.0,61150.0,0.1481752]
[1723373808360,0.55032722,61151.0,61150.0,0.15562793]
[1723373809445,0.77926822,61151.0,61150.0,0.1481752]
[1723373810185,0.55032722,61151.0,61150.0,0.1481752]
[1723373810382,0.52989547,61151.0,61150.0,0.1481752]
[1723373810583,0.55040376,61151.0,61150.0,0.1481752]
[1723373811827,0.77934476,61151.0,61150.0,0.1481752]
[1723373812013,0.55040376,61151.0,61150.0,0.1481752]
[1723373813913,0.54140376,61151.0,61150.0,0.1481752]
[1723373814286,0.53740376,61151.0,61150.0,0.1481752]
[1723373814741,0.54041725,61151.0,61150.0,0.1481752]
[1723373815118,0.54641725,61151.0,61150.0,0.1481752]
[1723373815444,0.53641725,61151.0,61150.0,0.1481752]
[1723373815822,0.54541725,61151.0,61150.0,0.1481752]
[1723373815964,0.77435825,61151.0,61150.0,0.1481752]
[1723373816161,0.54541725,61151.0,61150.0,0.1481752]
[1723373816965,0.77435825,61151.0,61150.0,0.1481752]
[1723373817787,0.7742686,61151.0,61150.0,0.1481752]
[1723373818589,0.82304762,61151.0,61150.0,0.1481752]
[1723373820353,0.82304762,61151.0,61150.0,0.0650752]
[1723373821499,0.82304333,61151.0,61150.0,0.0650752]
[1723373823373,0.77426431,61151.0,61150.0,0.0650752]
[1723373824289,0.54532331,61151.0,61150.0,0.1449752]
[1723373824852,0.52489547,61151.0,61150.0,0.1449752]
[1723373825047,0.54527778,61151.0,61150.0,0.1449752]
[1723373825310,0.54527778,61151.0,61150.0,0.15227411]
[1723373825511,0.54527785,61151.0,61150.0,0.15227411]
[1723373825712,0.59409065,61151.0,61150.0,0.15227411]
[1723373826502,0.54527785,61151.0,61150.0,0.15227411]
[1723373826708,0.54518263,61151.0,61150.0,0.15227411]
[1723373827265,0.38136771,61151.0,61150.0,0.15227411]
[1723373827390,0.03795671,61151.0,61150.0,0.15842123]
[1723373827799,0.03792415,61151.0,61150.0,0.15842123]
[1723373828005,0.15239415,61151.0,61150.0,0.15842123]
[1723373828559,0.20122099,61151.0,61150.0,0.15842123]
[1723373828907,0.08675099,61151.0,61150.0,0.15842123]
[1723373829091,0.20122099,61151.0,61150.0,0.15842123]
[1723373829293,0.20122099,61151.0,61150.0,0.16188052]
[1723373830384,0.08675099,61151.0,61150.0,0.16188052]
[1723373830602,0.20122099,61151.0,61150.0,0.16188052]
[1723373831036,0.08675099,61151.0,61150.0,0.16188052]
[1723373831644,0.08675099,61151.0,61150.0,0.15112232]
[1723373832432,0.03792415,61151.0,61150.0,0.15112232]
[1723373833938,0.03792415,61151.0,61150.0,0.26559432]
[1723373834339,0.01766955,61151.0,61150.0,0.26559432]
[1723373834607,0.03797805,61151.0,61150.0,0.26559432]
[1723373834752,0.03797805,61151.0,61150.0,0.15112232]
[1723373835081,0.01766955,61151.0,61150.0,0.15112232]
[1723373835317,0.03791501,61151.0,61150.0,0.15112232]
[1723373835693,0.03791506,61151.0,61150.0,0.15112232]
[1723373835895,0.03791506,61151.0,61150.0,0.26559432]
[1723373836105,0.03791506,61151.0,61150.0,0.15112232]
[1723373837849,0.03191506,61151.0,61150.0,0.15112232]
[1723373838053,0.02291506,61151.0,61150.0,0.15112232]
[1723373838202,0.02891506,61151.0,61150.0,0.15112232]
[1723373838405,0.03291506,61151.0,61150.0,0.15112232]
[1723373838755,0.02891506,61151.0,61150.0,0.15112232]
[1723373838943,0.02291506,61151.0,61150.0,0.15112232]
[1723373839305,0.02291506,61151.0,61150.0,0.15843322]
[1723373839534,0.02591506,61151.0,61150.0,0.15843322]
[1723373840390,0.02891506,61151.0,61150.0,0.15843322]
[1723373841047,0.02591506,61151.0,61150.0,0.15843322]
[1723373841251,0.02791506,61151.0,61150.0,0.15843322]
[1723373841633,0.02491506,61151.0,61150.0,0.15843322]
[1723373841835,0.02291506,61151.0,61150.0,0.15843322]
[1723373842017,0.02791506,61151.0,61150.0,0.15843322]
[1723373842235,0.00366955,61151.0,61150.0,0.15843322]
[1723373842446,0.02407992,61151.0,61150.0,0.15843322]
[1723373842638,0.02707992,61151.0,61150.0,0.15843322]
[1723373842844,0.02607992,61151.0,61150.0,0.15843322]
[1723373844271,0.02807992,61151.0,61150.0,0.15843322]
[1723373844706,0.02607992,61151.0,61150.0,0.15843322]
[1723373845103,0.14154992,61151.0,61150.0,0.15843322]
[1723373845509,0.14154992,61151.0,61150.0,0.07122232]
[1723373846255,0.76324684,61151.0,61150.0,0.07236555]
[1723373846454,0.53431581,61151.0,61150.0,0.07851267]
[1723373846679,0.81209039,61151.0,61150.0,0.07122232]
[1723373847285,0.58314939,61151.0,61150.0,0.07122232]
[1723373848585,0.81209039,61151.0,61150.0,0.0650752]
[1723373849266,0.81209039,61151.0,61150.0,0.0009152]
[1723373849466,0.8122776,61151.0,61150.0,0.0009152]
[1723373849822,0.8903776,61151.0,61150.0,0.0009152]
[1723373851270,1.1193186,61151.0,61150.0,0.0009152]
[1723373851476,1.1437354,61151.0,61150.0,0.0009152]
[1723373851705,1.30374612,61151.0,61150.0,0.0009152]
[1723373852919,1.18407747,61151.0,61150.0,0.0009152]
[1723373853116,1.30388201,61151.0,61150.0,0.0009152]
[1723373853576,1.48490971,61151.0,61150.0,0.0009152]
[1723373853761,1.33688201,61151.0,61150.0,0.0009152]
[1723373854114,1.34688201,61151.0,61150.0,0.0009152]
[1723373854318,1.95688201,61151.0,61150.0,0.0009152]
[1723373854515,1.95588201,61151.0,61150.0,0.0009152]
[1723373855082,1.96588201,61151.0,61150.0,0.0009152]
[1723373855221,2.59176659,61151.0,61150.0,0.0009152]
[1723373855423,0.93932243,61148.0,61147.0,0.0212819]
[1723373855620,2.2973709,61148.0,61147.0,0.0212819]
[1723373855822,2.15489389,61148.0,61147.0,0.0212819]
[1723373856427,2.15489389,61148.0,61147.0,0.01246633]
[1723373856428,2.15609141,61148.0,61147.0,0.01246633]
[1723373856654,2.46651097,61148.0,61147.0,0.01246633]
[1723373856862,2.34550891,61148.0,61147.0,0.01246633]
[1723373857037,2.47751091,61148.0,61147.0,0.01246633]
[1723373857397,2.46651091,61148.0,61147.0,0.01246633]
[1723373857516,2.32024105,61148.0,61147.0,0.01246633]
[1723373857716,2.33224105,61148.0,61147.0,0.01246633]
[1723373858169,2.32838817,61148.0,61147.0,0.01246633]
[1723373858379,2.21123905,61148.0,61147.0,0.01246633]
[1723373858588,2.33564764,61148.0,61147.0,0.01246633]
[1723373858997,2.34964764,61148.0,61147.0,0.01246633]
[1723373859205,2.17164506,61148.0,61147.0,0.01246633]
[1723373859411,1.91848451,61148.0,61147.0,0.01246633]
[1723373859614,1.46031482,61148.0,61147.0,0.01246633]
[1723373860175,1.45998661,61148.0,61147.0,0.01246633]
[1723373861284,0.98553971,61148.0,61147.0,0.09446633]
[1723373861483,0.8963002,61148.0,61147.0,0.09446633]
[1723373861776,0.8963002,61148.0,61147.0,0.01246633]
[1723373862174,1.1252522,61148.0,61147.0,0.01246633]
[1723373862416,0.8963002,61148.0,61147.0,0.01246633]
[1723373863528,1.1252522,61148.0,61147.0,0.01246633]
[1723373863679,1.12514909,61148.0,61147.0,0.01246633]